[Event "FIDE WCCC Girls-12 2024"]
[Site "Montesilvano"]
[Date "2024.11.19"]
[Round "5.3"]
[White "Zavivaeva, Kristina"]
[Black "Siddhi Rao"]
[Result "1/2-1/2"]
[ECO "A07"]
[WhiteElo "1775"]
[BlackElo "1677"]
[Annotator "NA RC"]
[PlyCount "115"]
[EventDate "2024.11.18"]
[EventType "swiss"]
[EventCountry "ITA"]
[SourceTitle "playchess.com"]
[Source "ChessBase"]
[SourceQuality "1"]
[TimeControl "5400+30"]

1. Nf3 {[%emt 0:00:02]} d5 {[%emt 0:00:07]} 2. g3 {[%emt 0:00:07]} Nd7 {[%emt 0:00:08]} 3. c4 {[%emt 0:00:43]} dxc4 {[%emt 0:04:32]} 4. Na3 {[%emt 0:03:28]} e5 {[%emt 0:06:37]} 5. Qc2 {[%emt 0:06:18]} Bc5 {[%emt 0:21:47]} 6. Bg2 {[%emt 0:04:46]} Ngf6 {[%emt 0:02:58]} 7. O-O {[%emt 0:01:30]} O-O {[%emt 0:01:33]} 8. Nxc4 {[%emt 0:00:35]} Qe7 {[%emt 0:02:41]} 9. b3 {[%emt 0:03:22]} h6 {[%emt 0:07:06]} 10. Bb2 {[%emt 0:01:08]} e4 {[%emt 0:07:47]} 11. Nfe5 {[%emt 0:05:14]} Nxe5 {[%emt 0:04:01]} 12. Bxe5 {[%emt 0:03:51]} Ng4 {[%emt 0:09:59]} 13. Bb2 {[%emt 0:06:19]} Bf5 {[%emt 0:02:10]} 14. Ne3 {[%emt 0:03:29]} Nxe3 {[%emt 0:00:24]} 15. fxe3 {[%emt 0:00:14]} Bh7 {[%emt 0:02:26]} 16. Rf4 {[%emt 0:02:35]} Rae8 {[%emt 0:09:11]} 17. Raf1 {[%emt 0:03:49]} Bd6 {[%emt 0:02:56]} 18. Rg4 {[%emt 0:05:13]} Be5 {[%emt 0:05:38]} 19. Bxe4 {[%emt 0:13:33]} f5 {[%emt 0:01:06]} 20. Bxe5 {[%emt 0:00:42]} Qxe5 {[%emt 0:01:15]} 21. Rgf4 {[%emt 0:01:01]} g5 {[%emt 0:01:38]} 22. d4 {[%emt 0:01:35]} Qe6 {[%emt 0:03:15]} 23. Bd3 {[%emt 0:06:45]} Qxe3+ {[%emt 0:00:35]} 24. R4f2 {[%emt 0:00:05]} Re7 {[%emt 0:01:41]} 25. Qc5 {[%emt 0:01:25]} b6 {[%emt 0:00:29]} 26. Qd5+ {[%emt 0:00:36]} Kg7 {[%emt 0:00:44]} 27. Kh1 {[%emt 0:01:34]} c6 {[%emt 0:00:35]} 28. Qc4 {[%emt 0:01:06]} Ref7 {[%emt 0:00:37]} 29. Rf3 {[%emt 0:01:18]} Qe8 {[%emt 0:00:16]} 30. Qc2 {[%emt 0:01:20]} Qd7 {[%emt 0:00:35]} 31. Qc3 {[%emt 0:00:32]} Rf6 {[%emt 0:00:34]} 32. e3 {[%emt 0:01:36]} Qd5 {[%emt 0:00:36]} 33. Kg1 {[%emt 0:00:21]} b5 {[%emt 0:00:10]} 34. a4 {[%emt 0:01:06]} a6 {[%emt 0:00:14]} 35. R3f2 {[%emt 0:00:47]} Re8 {[%emt 0:00:26]} 36. e4 {[%emt 0:01:13]} fxe4 {[%emt 0:01:09]} 37. Rxf6 {[%emt 0:02:36]} exd3 {[%emt 0:00:06]} 38. Qc5 {[%emt 0:01:54]} Qxc5 {[%emt 0:00:48]} 39. dxc5 {[%emt 0:00:06]} Be4 {[%emt 0:00:34]} 40. Rd6 {[%emt 0:01:10]} Bd5 {[%emt 0:00:31]} 41. axb5 {[%emt 0:00:55]} axb5 {[%emt 0:00:06]} 42. Rd1 {[%emt 0:01:44]} Re3 {[%emt 0:00:20]} 43. Rd2 {[%emt 0:00:34]} Rf3 {[%emt 0:00:52]} 44. Rxd5 {[%emt 0:02:51]} cxd5 {[%emt 0:00:09]} 45. c6 {[%emt 0:00:06]} Rf6 {[%emt 0:00:19]} 46. Rxd3 {[%emt 0:00:24]} Rxc6 {[%emt 0:00:05]} 47. Rxd5 {[%emt 0:00:07]} b4 {[%emt 0:02:14]} 48. Rb5 {[%emt 0:00:36]} Rc1+ {[%emt 0:00:00]} 49. Kg2 {[%emt 0:00:04]} Rc2+ {[%emt 0:00:00]} 50. Kh3 {[%emt 0:00:15]} Kg6 {[%emt 0:00:52]} 51. Rb6+ {[%emt 0:00:41]} Kg7 {[%emt 0:00:34]} 52. Rxb4 {[%emt 0:00:17]} h5 {[%emt 0:00:14]} 53. Rc4 {[%emt 0:02:25]} Rb2 {[%emt 0:00:46]} 54. b4 {[%emt 0:00:29]} Kf6 {[%emt 0:00:30]} 55. Rc6+ {[%emt 0:00:17]} Kf5 {[%emt 0:00:29]} 56. Rc5+ {[%emt 0:00:15]} Kg6 {[%emt 0:00:12]} 57. Rc6+ {[%emt 0:00:32]} Kf5 {[%emt 0:00:04]} 58. Rc5+ {[%emt 0:00:13]} 1/2-1/2

[Event "FIDE WCCC Girls-12 2024"]
[Site "Montesilvano"]
[Date "2024.11.19"]
[Round "5.9"]
[White "Bassari, Senem Gul"]
[Black "Xue, Tianhao"]
[Result "0-1"]
[ECO "B29"]
[WhiteElo "1778"]
[BlackElo "1835"]
[Annotator "NA RC"]
[PlyCount "188"]
[EventDate "2024.11.18"]
[EventType "swiss"]
[EventCountry "ITA"]
[SourceTitle "playchess.com"]
[Source "ChessBase"]
[SourceQuality "1"]
[TimeControl "5400+30"]

1. e4 {[%emt 0:00:10]} c5 {[%emt 0:00:03]} 2. Nf3 {[%emt 0:00:07]} Nc6 {[%emt 0:00:05]} 3. d3 {[%emt 0:00:22]} Nf6 {[%emt 0:00:06]} 4. g3 {[%emt 0:00:31]} d5 {[%emt 0:00:05]} 5. Qe2 {[%emt 0:00:15]} Bg4 {[%emt 0:00:09]} 6. Be3 {[%emt 0:35:44] B29: Sicilian: 2 Nf3 Nf6 (Nimzowitsch Variation).} dxe4 {[%emt 0:14:34]} 7. dxe4 {[%emt 0:00:29]} Nxe4 {[%emt 0:01:44]} 8. Bg2 {[%emt 0:11:22]} Qb6 {[%emt 0:16:06]} 9. c3 {[%emt 0:10:25]} e6 {[%emt 0:13:02]} 10. O-O {[%emt 0:11:46]} Nf6 {[%emt 0:01:59]} 11. h3 {[%emt 0:09:20]} Bxf3 {[%emt 0:03:05]} 12. Bxf3 {[%emt 0:00:08]} Be7 {[%emt 0:00:29]} 13. Na3 {[%emt 0:05:14]} O-O {[%emt 0:06:11]} 14. Rab1 {[%emt 0:02:35]} Qc7 {[%emt 0:09:32]} 15. Bf4 {[%emt 0:04:19]} e5 {[%emt 0:02:51]} 16. Nb5 {[%emt 0:01:10]} Qb8 {[%emt 0:01:06]} 17. Be3 {[%emt 0:01:33]} Qc8 {[%emt 0:02:33]} 18. Bg2 {[%emt 0:01:51]} a6 {[%emt 0:01:11]} 19. Na3 {[%emt 0:00:16]} Qe6 {[%emt 0:04:36]} 20. Nc4 {[%emt 0:00:59]} e4 {[%emt 0:03:25]} 21. Bg5 {[%emt 0:01:17]} Rfe8 {[%emt 0:01:20]} 22. Rfe1 {[%emt 0:00:39]} Bf8 {[%emt 0:08:50]} 23. Bxf6 {[%emt 0:00:32]} Qxf6 {[%emt 0:00:11]} 24. Bxe4 {[%emt 0:00:41]} Qh6 {[%emt 0:03:14]} 25. Qg4 {[%emt 0:00:37]} Rad8 {[%emt 0:02:17]} 26. Rbd1 {[%emt 0:00:27]} Rxd1 {[%emt 0:01:31]} 27. Rxd1 {[%emt 0:00:19]} b5 {[%emt 0:00:35]} 28. Bxc6 {[%emt 0:00:42]} Qxc6 {[%emt 0:00:04]} 29. Ne3 {[%emt 0:00:26]} g6 {[%emt 0:00:55]} 30. h4 {[%emt 0:00:31]} h5 {[%emt 0:00:45]} 31. Qf4 {[%emt 0:00:33]} c4 {[%emt 0:01:19]} 32. Qg5 {[%emt 0:00:33]} Bc5 {[%emt 0:01:38]} 33. Qf4 {[%emt 0:00:33]} Bxe3 {[%emt 0:00:18]} 34. fxe3 {[%emt 0:00:11]} Qc5 {[%emt 0:00:35]} 35. Rd4 {[%emt 0:00:34]} a5 {[%emt 0:00:50]} 36. Kh2 {[%emt 0:00:30]} Qe7 {[%emt 0:00:27]} 37. e4 {[%emt 0:00:28]} a4 {[%emt 0:00:13]} 38. a3 {[%emt 0:00:15]} Qe6 {[%emt 0:00:30]} 39. Qg5 {[%emt 0:00:44]} Qc6 {[%emt 0:00:45]} 40. Qf4 {[%emt 0:00:44]} Kg7 {[%emt 0:00:18]} 41. Kg1 {[%emt 0:00:34]} Re6 {[%emt 0:00:10]} 42. e5 {[%emt 0:00:23]} Qc5 {[%emt 0:00:20]} 43. Kh2 {[%emt 0:00:34]} Rxe5 {[%emt 0:00:49]} 44. Rd2 {[%emt 0:00:32]} Qe7 {[%emt 0:00:15]} 45. Qf2 {[%emt 0:00:29]} Kh7 {[%emt 0:00:17]} 46. Kh3 {[%emt 0:00:32]} Rf5 {[%emt 0:00:16]} 47. Qg2 {[%emt 0:00:27]} Qe1 {[%emt 0:00:32]} 48. Re2 {[%emt 0:00:27]} Qd1 {[%emt 0:00:10]} 49. Rd2 {[%emt 0:00:33]} Qg4+ {[%emt 0:00:10]} 50. Kh2 {[%emt 0:00:03]} Kg7 {[%emt 0:00:51]} 51. Rf2 {[%emt 0:01:00]} Re5 {[%emt 0:00:15]} 52. Qf1 {[%emt 0:00:26]} Qe6 {[%emt 0:00:17]} 53. Qg2 {[%emt 0:00:35]} Re1 {[%emt 0:00:21]} 54. Qf3 {[%emt 0:00:28]} Re5 {[%emt 0:00:25]} 55. Qd1 {[%emt 0:00:28]} Kh7 {[%emt 0:00:33]} 56. Qf1 {[%emt 0:00:20]} Kg8 {[%emt 0:00:07]} 57. Qd1 {[%emt 0:00:41]} Rd5 {[%emt 0:00:55]} 58. Qf3 {[%emt 0:00:29]} Rd3 {[%emt 0:00:53]} 59. Qg2 {[%emt 0:00:34]} Kg7 {[%emt 0:00:26]} 60. Re2 {[%emt 0:00:18]} Qd6 {[%emt 0:00:17]} 61. Rf2 {[%emt 0:00:43]} Qe5 {[%emt 0:01:02]} 62. Re2 {[%emt 0:00:26]} Qf5 {[%emt 0:00:42]} 63. Rf2 {[%emt 0:00:26]} Qg4 {[%emt 0:00:23]} 64. Rf4 {[%emt 0:00:34]} Qd7 {[%emt 0:01:14]} 65. Rf2 {[%emt 0:00:06]} Qd6 {[%emt 0:00:51]} 66. Re2 {[%emt 0:00:46]} Kh6 {[%emt 0:00:20]} 67. Rf2 {[%emt 0:00:33]} f5 {[%emt 0:00:47]} 68. Rf4 {[%emt 0:00:37]} Qe5 {[%emt 0:00:45]} 69. Rf2 {[%emt 0:00:30]} Qd6 {[%emt 0:00:34]} 70. Rf4 {[%emt 0:00:10]} Qe5 {[%emt 0:00:02]} 71. Rf2 {[%emt 0:00:10]} Re3 {[%emt 0:00:11]} 72. Rf4 {[%emt 0:00:34]} Re2 {[%emt 0:00:54]} 73. Rf2 {[%emt 0:00:05]} Re4 {[%emt 0:00:07]} 74. Kg1 {[%emt 0:01:28]} Rg4 {[%emt 0:00:17]} 75. Rf3 {[%emt 0:00:31]} Qe1+ {[%emt 0:00:20]} 76. Kh2 {[%emt 0:00:27]} f4 {[%emt 0:00:09]} 77. Rxf4 {[%emt 0:00:36]} Rxf4 {[%emt 0:00:01]} 78. gxf4 {[%emt 0:00:02]} Qxh4+ {[%emt 0:00:10]} 79. Kg1 {[%emt 0:00:10]} Qg4 {[%emt 0:02:23]} 80. Qxg4 {[%emt 0:00:44]} hxg4 {[%emt 0:00:01]} 81. Kg2 {[%emt 0:00:49]} g5 {[%emt 0:01:20]} 82. f5 {[%emt 0:00:43]} Kg7 {[%emt 0:00:08]} 83. Kg3 {[%emt 0:00:12] [#]} Kf7 {[%emt 0:00:05]} 84. Kxg4 {[%emt 0:00:39]} Kf6 {[%emt 0:00:03]} 85. Kg3 {[%emt 0:00:13]} Kxf5 {[%emt 0:00:03]} 86. Kf3 {[%emt 0:00:04]} g4+ {[%emt 0:00:05]} 87. Kg3 {[%emt 0:00:02]} Kg5 {[%emt 0:00:04]} 88. Kg2 {[%emt 0:00:04]} Kf4 {[%emt 0:00:03]} 89. Kf2 {[%emt 0:00:04]} Ke4 {[%emt 0:00:07]} 90. Kg3 {[%emt 0:00:03]} Kd3 {[%emt 0:00:03]} 91. Kxg4 {[%emt 0:00:05]} Kc2 {[%emt 0:00:03]} 92. Kf4 {[%emt 0:00:04]} Kxb2 {[%emt 0:00:03]} 93. Ke4 {[%emt 0:00:04]} Kxc3 {[%emt 0:00:03]} 94. Ke3 {[%emt 0:00:04]} Kb3 {[%emt 0:00:03]} 0-1

[Event "FIDE WCCC Girls-12 2024"]
[Site "Montesilvano"]
[Date "2024.11.19"]
[Round "5.13"]
[White "Hanya Shah"]
[Black "Zavivaeva, Angelina"]
[Result "1-0"]
[ECO "D45"]
[WhiteElo "1888"]
[BlackElo "1499"]
[Annotator "NA RC"]
[PlyCount "108"]
[EventDate "2024.11.18"]
[EventType "swiss"]
[EventCountry "ITA"]
[SourceTitle "playchess.com"]
[Source "ChessBase"]
[SourceQuality "1"]
[TimeControl "5400+30"]

1. c4 {[%emt 0:00:02]} c6 {[%emt 0:00:05]} 2. Nc3 {[%emt 0:00:04]} d5 {[%emt 0:02:36]} 3. e3 {[%emt 0:00:15]} Nf6 {[%emt 0:00:08]} 4. Nf3 {[%emt 0:00:08]} e6 {[%emt 0:01:22]} 5. Qc2 {[%emt 0:00:15]} Bd6 {[%emt 0:02:15]} 6. d4 {[%emt 0:00:07]} Nbd7 {[%emt 0:00:49]} 7. g4 {[%emt 1:33:09]} dxc4 {[%emt 0:16:17]} 8. Bxc4 {[%emt 0:00:00]} Nxg4 {[%emt 0:11:29]} 9. Rg1 {[%emt 0:00:00]} Nxh2 {[%emt 0:21:14]} 10. Nxh2 {[%emt 0:00:00]} Bxh2 {[%emt 0:00:13]} 11. Rxg7 {[%emt 0:00:00]} Qh4 {[%emt 0:02:54]} 12. Bd2 {[%emt 0:00:00]} Qh6 {[%emt 0:10:53]} 13. Rg2 {[%emt 0:00:00]} b5 {[%emt 0:07:21]} 14. Bd3 {[%emt 0:00:00]} Bb7 {[%emt 0:03:05]} 15. O-O-O {[%emt 0:00:00]} Qh3 {[%emt 0:04:23]} 16. Be4 {[%emt 0:00:00]} f5 {[%emt 0:08:07]} 17. Rh1 {[%emt 0:00:00]} fxe4 {[%emt 0:00:41]} 18. Rhxh2 {[%emt 0:00:00]} Qf3 {[%emt 0:02:49]} 19. Rg3 {[%emt 0:00:00]} Qf7 {[%emt 0:02:19]} 20. Nxe4 {[%emt 0:00:00]} Qe7 {[%emt 0:00:26]} 21. a3 {[%emt 0:00:00]} a5 {[%emt 0:00:55]} 22. f3 {[%emt 0:00:00]} b4 {[%emt 0:00:30]} 23. a4 {[%emt 0:00:00]} O-O-O {[%emt 0:00:33]} 24. Rhg2 {[%emt 0:00:00]} Qh4 {[%emt 0:00:03]} 25. Nd6+ {[%emt 0:00:00]} Kc7 {[%emt 0:00:36]} 26. Nf7 {[%emt 0:00:00]} Rhf8 {[%emt 0:00:34]} 27. Nxd8 {[%emt 0:00:00]} Kxd8 {[%emt 0:00:40]} 28. e4 {[%emt 0:00:00]} Kc7 {[%emt 0:00:23]} 29. f4 {[%emt 0:01:57]} Qf6 {[%emt 0:00:34]} 30. Be3 {[%emt 0:01:06]} h5 {[%emt 0:00:22]} 31. d5 {[%emt 0:01:17]} exd5 {[%emt 0:00:34]} 32. exd5 {[%emt 0:00:29]} Qd6 {[%emt 0:00:46]} 33. Rd2 {[%emt 0:01:58]} Kb8 {[%emt 0:00:29]} 34. Rg6 {[%emt 0:02:40]} Rf6 {[%emt 0:00:30]} 35. Rxf6 {[%emt 0:02:27]} Qxf6 {[%emt 0:00:19]} 36. dxc6 {[%emt 0:01:13]} Bxc6 {[%emt 0:00:29]} 37. Qd3 {[%emt 0:00:45]} Bxa4 {[%emt 0:00:42]} 38. Qd6+ {[%emt 0:00:23]} Qxd6 {[%emt 0:00:07]} 39. Rxd6 {[%emt 0:00:04]} Kc7 {[%emt 0:00:56]} 40. Rh6 {[%emt 0:00:19]} Bb3 {[%emt 0:00:27]} 41. Rxh5 {[%emt 0:00:29]} a4 {[%emt 0:00:08]} 42. Bc5 {[%emt 0:01:04]} Nxc5 {[%emt 0:00:31]} 43. Rxc5+ {[%emt 0:00:06]} Kb6 {[%emt 0:00:08]} 44. Rh5 {[%emt 0:00:36]} a3 {[%emt 0:00:17]} 45. bxa3 {[%emt 0:00:10]} bxa3 {[%emt 0:00:43]} 46. Rh3 {[%emt 0:00:11]} Bf7 {[%emt 0:00:54]} 47. Rxa3 {[%emt 0:00:04]} Kc5 {[%emt 0:00:07]} 48. Kd2 {[%emt 0:00:14]} Kd5 {[%emt 0:00:43]} 49. Ke3 {[%emt 0:00:21]} Bg6 {[%emt 0:00:29]} 50. Ra5+ {[%emt 0:00:09]} Ke6 {[%emt 0:00:16]} 51. Kd4 {[%emt 0:00:09]} Kf6 {[%emt 0:00:22]} 52. Ra6+ {[%emt 0:01:32]} Kf5 {[%emt 0:00:35]} 53. Rxg6 {[%emt 0:00:40]} Kxg6 {[%emt 0:00:27]} 54. Ke5 {[%emt 0:00:05]} Kf7 {[%emt 0:01:04]} 1-0

[Event "FIDE WCCC Girls-12 2024"]
[Site "Montesilvano"]
[Date "2024.11.19"]
[Round "5.14"]
[White "Tong Thai Hoang An"]
[Black "Chichinadze, Anastasia"]
[Result "1-0"]
[ECO "E01"]
[WhiteElo "1869"]
[BlackElo "1682"]
[Annotator "NA RC"]
[PlyCount "105"]
[EventDate "2024.11.18"]
[EventType "swiss"]
[EventCountry "ITA"]
[SourceTitle "playchess.com"]
[Source "ChessBase"]
[SourceQuality "1"]
[TimeControl "5400+30"]

1. d4 {[%emt 0:00:04]} Nf6 {[%emt 0:00:11]} 2. c4 {[%emt 0:00:07]} e6 {[%emt 0:00:03]} 3. g3 {[%emt 0:00:12]} Bb4+ {[%emt 0:00:05]} 4. Nd2 {[%emt 0:00:05]} O-O {[%emt 0:00:21]} 5. Bg2 {[%emt 0:01:08]} d5 {[%emt 0:02:06]} 6. Ngf3 {[%emt 0:01:53]} Nc6 {[%emt 0:12:42]} 7. Qc2 {[%emt 0:06:51]} Ne4 {[%emt 0:05:15]} 8. e3 {[%emt 0:08:25]} Nxd2 {[%emt 0:17:49]} 9. Bxd2 {[%emt 0:03:06]} Bxd2+ {[%emt 0:00:12]} 10. Nxd2 {[%emt 0:00:21]} Ne7 {[%emt 0:02:51]} 11. O-O {[%emt 0:03:08]} Nf5 {[%emt 0:07:33]} 12. Rfd1 {[%emt 0:05:21]} c6 {[%emt 0:04:16]} 13. Qd3 {[%emt 0:12:36]} Qb6 {[%emt 0:07:37]} 14. b3 {[%emt 0:02:29]} Rd8 {[%emt 0:02:37]} 15. Rac1 {[%emt 0:01:54]} f6 {[%emt 0:05:59]} 16. Qc3 {[%emt 0:04:30]} Qc7 {[%emt 0:04:21]} 17. e4 {[%emt 0:09:59]} Ne7 {[%emt 0:04:23]} 18. Nf1 {[%emt 0:06:12]} Qd6 {[%emt 0:08:29]} 19. Ne3 {[%emt 0:03:36]} b6 {[%emt 0:01:18]} 20. cxd5 {[%emt 0:05:40]} exd5 {[%emt 0:01:40]} 21. exd5 {[%emt 0:01:05]} cxd5 {[%emt 0:00:39]} 22. Qc7 {[%emt 0:03:40]} Be6 {[%emt 0:02:33]} 23. Qxd6 {[%emt 0:03:02]} Rxd6 {[%emt 0:00:05]} 24. Rc7 {[%emt 0:02:42]} Nf5 {[%emt 0:01:47]} 25. Nxf5 {[%emt 0:02:13]} Bxf5 {[%emt 0:00:04]} 26. Re1 {[%emt 0:00:18]} a5 {[%emt 0:02:20]} 27. Ree7 {[%emt 0:03:22]} g5 {[%emt 0:00:06]} 28. Bf3 {[%emt 0:02:08]} Rad8 {[%emt 0:01:26]} 29. Kf1 {[%emt 0:02:40]} R8d7 {[%emt 0:00:49]} 30. Rexd7 {[%emt 0:00:38]} Bxd7 {[%emt 0:00:15]} 31. Ke2 {[%emt 0:00:32]} Be6 {[%emt 0:00:55]} 32. Kd3 {[%emt 0:00:15]} Bf7 {[%emt 0:00:31]} 33. Kc3 {[%emt 0:00:20]} Kf8 {[%emt 0:00:33]} 34. b4 {[%emt 0:00:08]} axb4+ {[%emt 0:00:53]} 35. Kxb4 {[%emt 0:00:05]} Rd8 {[%emt 0:01:12]} 36. Kb5 {[%emt 0:00:44]} Rb8 {[%emt 0:00:08]} 37. Kc6 {[%emt 0:01:06]} Be8+ {[%emt 0:00:58]} 38. Kd6 {[%emt 0:01:08]} Bf7 {[%emt 0:00:46]} 39. Rd7 {[%emt 0:00:36]} Rc8 {[%emt 0:00:55]} 40. Bxd5 {[%emt 0:01:16]} Bxd5 {[%emt 0:00:06]} 41. Kxd5 {[%emt 0:00:05]} Rc2 {[%emt 0:00:04]} 42. a4 {[%emt 0:01:05]} Rxf2 {[%emt 0:00:12]} 43. Rxh7 {[%emt 0:00:06]} Ra2 {[%emt 0:00:09]} 44. Ke6 {[%emt 0:00:35]} Rxa4 {[%emt 0:00:21]} 45. Kxf6 {[%emt 0:00:27]} Kg8 {[%emt 0:00:05]} 46. Rg7+ {[%emt 0:00:50]} Kh8 {[%emt 0:00:05]} 47. Rb7 {[%emt 0:00:41]} Rxd4 {[%emt 0:00:16]} 48. Rxb6 {[%emt 0:00:10]} g4 {[%emt 0:01:07]} 49. Kg6 {[%emt 0:00:30]} Rd8 {[%emt 0:00:29]} 50. Kg5 {[%emt 0:01:18]} Rd2 {[%emt 0:01:17]} 51. Rh6+ {[%emt 0:00:23]} Kg7 {[%emt 0:00:07]} 52. Rh4 {[%emt 0:00:05]} Rf2 {[%emt 0:00:30]} 53. Kxg4 {[%emt 0:00:09]} 1-0

[Event "FIDE WCCC Girls-12 2024"]
[Site "Montesilvano"]
[Date "2024.11.19"]
[Round "5.20"]
[White "Jordan, Christina"]
[Black "Smirnova, Viktoria A"]
[Result "1-0"]
[ECO "C15"]
[WhiteElo "1803"]
[BlackElo "1658"]
[Annotator "NA RC"]
[PlyCount "105"]
[EventDate "2024.11.18"]
[EventType "swiss"]
[EventCountry "ITA"]
[SourceTitle "playchess.com"]
[Source "ChessBase"]
[SourceQuality "1"]
[TimeControl "5400+30"]

1. e4 {[%emt 0:00:03]} e6 {[%emt 0:00:06]} 2. d4 {[%emt 0:00:07]} d5 {[%emt 0:00:05]} 3. Nc3 {[%emt 0:00:04]} Bb4 {[%emt 0:00:08]} 4. Nge2 {[%emt 0:00:07]} dxe4 {[%emt 0:00:35]} 5. a3 {[%emt 0:00:11]} Bxc3+ {[%emt 0:00:08]} 6. Nxc3 {[%emt 0:00:06]} Nc6 {[%emt 0:00:26]} 7. Bf4 {[%emt 0:00:06]} Nf6 {[%emt 0:01:58]} 8. Bb5 {[%emt 0:00:15]} Bd7 {[%emt 0:04:55]} 9. d5 {[%emt 0:00:44]} exd5 {[%emt 0:02:18]} 10. Nxd5 {[%emt 0:00:09]} Nxd5 {[%emt 0:01:46]} 11. Qxd5 {[%emt 0:00:12]} O-O {[%emt 0:10:42]} 12. O-O-O {[%emt 0:01:03]} Qf6 {[%emt 0:25:56]} 13. Be3 {[%emt 0:03:12]} Bf5 {[%emt 0:03:49]} 14. Bxc6 {[%emt 0:02:29]} bxc6 {[%emt 0:00:11]} 15. Qd4 {[%emt 0:00:58]} Qe6 {[%emt 0:01:26]} 16. Kb1 {[%emt 0:07:21]} a5 {[%emt 0:05:32]} 17. Bf4 {[%emt 0:03:09]} Qe7 {[%emt 0:07:04]} 18. Qc3 {[%emt 0:02:24]} Rfb8 {[%emt 0:01:36]} 19. Qxc6 {[%emt 0:01:06]} h6 {[%emt 0:07:03]} 20. Qxc7 {[%emt 0:02:25]} Qxc7 {[%emt 0:00:37]} 21. Bxc7 {[%emt 0:00:33]} Rc8 {[%emt 0:00:03]} 22. Rd5 {[%emt 0:04:08]} Rxc7 {[%emt 0:05:31]} 23. Rxf5 {[%emt 0:00:06]} Rac8 {[%emt 0:00:21]} 24. c3 {[%emt 0:00:28]} a4 {[%emt 0:01:10]} 25. Re5 {[%emt 0:00:56]} Rb8 {[%emt 0:02:03]} 26. Kc2 {[%emt 0:00:41]} Rcb7 {[%emt 0:01:19]} 27. Rb1 {[%emt 0:00:12]} f5 {[%emt 0:01:23]} 28. Rxf5 {[%emt 0:00:10]} g6 {[%emt 0:00:20]} 29. Rf4 {[%emt 0:00:56]} Re7 {[%emt 0:01:23]} 30. Re1 {[%emt 0:05:01]} Reb7 {[%emt 0:00:27]} 31. Rexe4 {[%emt 0:06:02]} Rxb2+ {[%emt 0:00:37]} 32. Kd3 {[%emt 0:03:31]} Rd8+ {[%emt 0:01:43]} 33. Rd4 {[%emt 0:05:10]} Re8 {[%emt 0:01:53]} 34. Rxa4 {[%emt 0:00:39]} Ree2 {[%emt 0:00:40]} 35. Ra8+ {[%emt 0:02:26]} Kg7 {[%emt 0:00:23]} 36. Ra7+ {[%emt 0:03:22]} Kg8 {[%emt 0:00:15]} 37. Rf6 {[%emt 0:00:36]} Rbd2+ {[%emt 0:01:01]} 38. Kc4 {[%emt 0:00:07]} Rxf2 {[%emt 0:01:43]} 39. Rxg6+ {[%emt 0:00:06]} Kh8 {[%emt 0:01:26]} 40. Rxh6+ {[%emt 0:00:05]} Kg8 {[%emt 0:00:04]} 41. Rb6 {[%emt 0:02:50]} Rf4+ {[%emt 0:00:43]} 42. Kb3 {[%emt 0:00:07]} Rxg2 {[%emt 0:00:51]} 43. Rb8+ {[%emt 0:00:13]} Rf8 {[%emt 0:00:05]} 44. Rxf8+ {[%emt 0:00:03]} Kxf8 {[%emt 0:00:04]} 45. h4 {[%emt 0:00:17]} Rh2 {[%emt 0:00:06]} 46. Rh7 {[%emt 0:00:09]} Ke8 {[%emt 0:00:05]} 47. a4 {[%emt 0:00:08]} Kd8 {[%emt 0:00:07]} 48. a5 {[%emt 0:00:05]} Kc8 {[%emt 0:00:05]} 49. h5 {[%emt 0:00:59]} Kb8 {[%emt 0:00:06]} 50. h6 {[%emt 0:01:02]} Ka8 {[%emt 0:00:05]} 51. Kb4 {[%emt 0:00:25]} Rh4+ {[%emt 0:00:26]} 52. Kc5 {[%emt 0:00:12]} Rh5+ {[%emt 0:00:28]} 53. Kb6 {[%emt 0:00:06]} 1-0